[Event "RUS-ch Men Rapid 2019"]
[Site "Sochi"]
[Date "2019.10.16"]
[Round "11.15"]
[White "Pogromsky, Mikhail"]
[Black "Yudin, Sergei"]
[Result "0-1"]
[ECO "A04"]
[WhiteElo "2411"]
[BlackElo "2497"]
[Annotator "ChessBase"]
[PlyCount "65"]
[EventDate "2019.10.15"]
[EventType "swiss"]
[EventCountry "RUS"]
[SourceTitle "playchess.com"]
[Source "ChessBase"]
[SourceQuality "1"]
[TimeControl "900+10"]

1. Nf3 {[%emt 0:00:05]} e6 {[%emt 0:00:00]} 2. b3 {[%emt 0:00:05]} d5 {[%emt 0:00:08]} 3. Bb2 {[%emt 0:00:02]} Nf6 {[%emt 0:00:01]} 4. c4 {[%emt 0:00:11]} c5 {[%emt 0:00:09]} 5. cxd5 {[%emt 0:00:06]} exd5 {[%emt 0:00:16]} 6. g3 {[%emt 0:00:37]} Nc6 {[%emt 0:00:03]} 7. Bg2 {[%emt 0:00:01]} d4 {[%emt 0:00:07]} 8. O-O {[%emt 0:00:06]} Be7 {[%emt 0:00:02]} 9. Na3 {[%emt 0:01:02]} O-O {[%emt 0:00:04]} 10. Nc4 {[%emt 0:00:02]} Be6 {[%emt 0:00:08]} 11. e3 {[%emt 0:00:27]} Rc8 {[%emt 0:00:14]} 12. Nfe5 {[%emt 0:00:54]} Nxe5 {[%emt 0:01:24]} 13. Nxe5 {[%emt 0:00:02]} dxe3 {[%emt 0:01:33]} 14. dxe3 {[%emt 0:00:30]} Qc7 {[%emt 0:00:01]} 15. Qc2 {[%emt 0:01:01]} Nd5 {[%emt 0:00:17]} 16. Rad1 {[%emt 0:00:58]} Rfd8 {[%emt 0:00:16]} 17. Nc4 {[%emt 0:00:38]} b5 {[%emt 0:00:55]} 18. Ne5 {[%emt 0:01:04]} c4 {[%emt 0:01:05]} 19. bxc4 {[%emt 0:00:27]} bxc4 {[%emt 0:00:01]} 20. Bd4 {[%emt 0:01:46]} Qa5 {[%emt 0:00:51]} 21. Be4 {[%emt 0:01:48]} g6 {[%emt 0:01:06]} 22. Qe2 {[%emt 0:01:10]} c3 {[%emt 0:04:54]} 23. Rc1 {[%emt 0:01:11]} Ba3 {[%emt 0:01:16]} 24. Rc2 {[%emt 0:00:19]} Bb2 {[%emt 0:00:27]} 25. Ng4 {[%emt 0:01:38]} Bxg4 {[%emt 0:02:25]} 26. Qxg4 {[%emt 0:00:03]} Nb4 {[%emt 0:00:04]} 27. Qh4 {[%emt 0:02:13]} Rxd4 {[%emt 0:00:35]} 28. exd4 {[%emt 0:00:02]} Nxc2 {[%emt 0:00:07]} 29. Bxc2 {[%emt 0:00:03]} Qxa2 {[%emt 0:00:09]} 30. Qg4 {[%emt 0:00:39]} Rd8 {[%emt 0:00:19]} 31. Rd1 {[%emt 0:00:38]} Ba3 {[%emt 0:00:18]} 32. Qe4 {[%emt 0:00:12]} Qc4 {[%emt 0:00:17]} 33. Qe5 0-1

[Event "RUS-ch Men Rapid 2019"]
[Site "Sochi"]
[Date "2019.10.16"]
[Round "11.17"]
[White "Kabanov, Nikolai"]
[Black "Papin, Vasily"]
[Result "0-1"]
[ECO "B23"]
[WhiteElo "2455"]
[BlackElo "2481"]
[Annotator "ChessBase"]
[PlyCount "52"]
[EventDate "2019.10.15"]
[EventType "swiss"]
[EventCountry "RUS"]
[SourceTitle "playchess.com"]
[Source "ChessBase"]
[SourceQuality "1"]
[TimeControl "900+10"]

1. e4 {[%emt 0:00:00]} c5 {[%emt 0:00:00]} 2. Nc3 {[%emt 0:00:00]} a6 {[%emt 0:00:00]} 3. f4 {[%emt 0:00:12]} b5 {[%emt 0:00:00]} 4. Nf3 {[%emt 0:00:05]} Bb7 {[%emt 0:00:00]} 5. d3 {[%emt 0:00:04]} e6 {[%emt 0:00:00]} 6. g3 {[%emt 0:00:08]} d5 {[%emt 0:00:04]} 7. Bg2 {[%emt 0:00:21]} h5 {[%emt 0:00:30]} 8. exd5 {[%emt 0:00:55]} exd5 {[%emt 0:00:02]} 9. O-O {[%emt 0:00:04]} Nf6 {[%emt 0:00:15]} 10. Re1+ {[%emt 0:00:44]} Be7 {[%emt 0:00:02]} 11. Qe2 {[%emt 0:00:03]} Nc6 {[%emt 0:00:04]} 12. Ne5 {[%emt 0:00:24]} Nd4 {[%emt 0:00:12]} 13. Qf2 {[%emt 0:00:02]} Qc7 {[%emt 0:00:27]} 14. Nd1 {[%emt 0:01:08]} h4 {[%emt 0:00:44]} 15. g4 {[%emt 0:01:59]} h3 {[%emt 0:00:03]} 16. Bh1 {[%emt 0:00:03]} Kf8 {[%emt 0:01:17]} 17. Ne3 {[%emt 0:00:24]} Nxg4 {[%emt 0:01:10]} 18. N3xg4 {[%emt 0:01:50]} Bh4 {[%emt 0:00:04]} 19. Qd2 {[%emt 0:00:21]} Bxe1 {[%emt 0:00:12]} 20. Qxe1 {[%emt 0:00:02]} Nxc2 {[%emt 0:00:11]} 21. Qc3 {[%emt 0:00:38]} Nxa1 {[%emt 0:00:22]} 22. Be3 {[%emt 0:00:25]} d4 {[%emt 0:01:09]} 23. Bxd4 Bxh1 {[%emt 0:02:55]} 24. Nd7+ {[%emt 0:02:22]} Ke7 {[%emt 0:00:17]} 25. Nxc5 {[%emt 0:02:33]} Qxf4 {[%emt 0:00:42]} 26. Ne3 {[%emt 0:01:19]} Rh6 {[%emt 0:00:52]} 0-1

[Event "RUS-ch Men Rapid 2019"]
[Site "Sochi"]
[Date "2019.10.16"]
[Round "11.18"]
[White "Ivlev, Aleksey"]
[Black "Gutenev, Alexander"]
[Result "1/2-1/2"]
[ECO "A47"]
[WhiteElo "2292"]
[BlackElo "2469"]
[Annotator "ChessBase"]
[PlyCount "97"]
[EventDate "2019.10.15"]
[EventType "swiss"]
[EventCountry "RUS"]
[SourceTitle "playchess.com"]
[Source "ChessBase"]
[SourceQuality "1"]
[TimeControl "900+10"]

1. d4 {[%emt 0:00:00]} Nf6 {[%emt 0:00:00]} 2. Nf3 {[%emt 0:00:00]} b6 {[%emt 0:00:00]} 3. g3 {[%emt 0:00:00]} Bb7 {[%emt 0:00:00]} 4. Bg2 {[%emt 0:00:00]} g6 {[%emt 0:00:00]} 5. O-O {[%emt 0:00:03]} Bg7 {[%emt 0:00:00]} 6. c4 {[%emt 0:00:04]} O-O {[%emt 0:00:00]} 7. Nc3 {[%emt 0:00:47]} Ne4 {[%emt 0:00:00]} 8. Bd2 {[%emt 0:00:01]} e6 {[%emt 0:00:22]} 9. Rc1 {[%emt 0:00:06]} d6 {[%emt 0:00:09]} 10. d5 {[%emt 0:00:23]} Nxd2 {[%emt 0:00:16]} 11. Qxd2 {[%emt 0:00:02]} e5 {[%emt 0:00:09]} 12. b4 {[%emt 0:00:24]} Nd7 {[%emt 0:00:06]} 13. e4 {[%emt 0:00:33]} a5 {[%emt 0:00:04]} 14. a3 {[%emt 0:00:01]} h6 {[%emt 0:00:14]} 15. Ne1 {[%emt 0:00:20]} f5 {[%emt 0:00:06]} 16. Nd3 {[%emt 0:00:02]} Nf6 {[%emt 0:01:20]} 17. f4 {[%emt 0:01:29]} axb4 {[%emt 0:02:47]} 18. axb4 {[%emt 0:00:06]} fxe4 {[%emt 0:00:19]} 19. Nxe4 {[%emt 0:00:02]} Qe7 {[%emt 0:00:46]} 20. fxe5 {[%emt 0:00:50]} dxe5 {[%emt 0:00:02]} 21. Nxf6+ {[%emt 0:00:34]} Rxf6 {[%emt 0:00:02]} 22. Rxf6 {[%emt 0:00:17]} Qxf6 {[%emt 0:00:24]} 23. Rf1 {[%emt 0:00:03]} Qg5 {[%emt 0:01:57]} 24. Qxg5 {[%emt 0:01:08]} hxg5 {[%emt 0:00:01]} 25. Be4 {[%emt 0:00:01]} Ra3 {[%emt 0:00:54]} 26. c5 {[%emt 0:02:24]} Rc3 {[%emt 0:02:52]} 27. Rc1 {[%emt 0:06:53]} Rxc1+ {[%emt 0:00:11]} 28. Nxc1 {[%emt 0:00:01]} bxc5 {[%emt 0:00:01]} 29. bxc5 {[%emt 0:00:28]} Bf8 {[%emt 0:00:10]} 30. Nd3 {[%emt 0:01:19]} Ba6 {[%emt 0:00:01]} 31. d6 {[%emt 0:00:35]} cxd6 {[%emt 0:00:06]} 32. c6 {[%emt 0:00:02]} d5 {[%emt 0:01:31]} 33. Bxd5+ {[%emt 0:00:05]} Kg7 {[%emt 0:00:01]} 34. Nxe5 {[%emt 0:01:02]} Bd6 {[%emt 0:00:01]} 35. Nc4 {[%emt 0:00:26]} Bc7 {[%emt 0:00:12]} 36. Kg2 {[%emt 0:00:04]} Kf6 {[%emt 0:00:19]} 37. Ne3 {[%emt 0:00:10]} Ke5 {[%emt 0:00:14]} 38. Bf3 {[%emt 0:00:16]} Kd6 {[%emt 0:00:30]} 39. Be4 {[%emt 0:00:09]} Bb5 {[%emt 0:00:01]} 40. Kf3 {[%emt 0:00:06]} Bd8 {[%emt 0:00:16]} 41. Bxg6 {[%emt 0:00:09]} Bxc6+ {[%emt 0:00:05]} 42. Be4 {[%emt 0:00:01]} Bd7 {[%emt 0:00:06]} 43. g4 {[%emt 0:00:06]} Ke5 {[%emt 0:00:09]} 44. Ba8 {[%emt 0:00:16]} Be6 {[%emt 0:00:09]} 45. Bb7 {[%emt 0:00:16]} Bb6 {[%emt 0:00:03]} 46. h3 {[%emt 0:00:16]} Bc5 {[%emt 0:00:13]} 47. Be4 {[%emt 0:00:03]} Bb6 {[%emt 0:00:12]} 48. Bf5 {[%emt 0:00:07]} Bxe3 {[%emt 0:00:57]} 49. Bxe6 {[%emt 0:00:02]} 1/2-1/2

[Event "RUS-ch Men Rapid 2019"]
[Site "Sochi"]
[Date "2019.10.16"]
[Round "11.19"]
[White "Samusenko, Maksim"]
[Black "Drygalov, Andrey"]
[Result "1/2-1/2"]
[ECO "B93"]
[WhiteElo "2445"]
[BlackElo "2484"]
[Annotator "ChessBase"]
[PlyCount "99"]
[EventDate "2019.10.15"]
[EventType "swiss"]
[EventCountry "RUS"]
[SourceTitle "playchess.com"]
[Source "ChessBase"]
[SourceQuality "1"]
[TimeControl "900+10"]

1. e4 {[%emt 0:00:00]} c5 {[%emt 0:00:00]} 2. Nf3 {[%emt 0:00:00]} d6 {[%emt 0:00:00]} 3. d4 {[%emt 0:00:00]} cxd4 {[%emt 0:00:00]} 4. Nxd4 {[%emt 0:00:00]} Nf6 {[%emt 0:00:00]} 5. Nc3 {[%emt 0:00:00]} a6 {[%emt 0:00:00]} 6. f4 {[%emt 0:00:00]} e5 {[%emt 0:00:00]} 7. Nf3 {[%emt 0:00:01]} Nbd7 {[%emt 0:00:00]} 8. Bd3 {[%emt 0:00:06]} Qc7 {[%emt 0:00:09]} 9. O-O {[%emt 0:00:04]} Be7 {[%emt 0:00:01]} 10. Kh1 {[%emt 0:00:01]} Nc5 {[%emt 0:00:31]} 11. Qe1 {[%emt 0:00:24]} Nxd3 {[%emt 0:04:52]} 12. cxd3 {[%emt 0:00:02]} exf4 {[%emt 0:00:11]} 13. Bxf4 {[%emt 0:00:14]} Be6 {[%emt 0:00:08]} 14. Rc1 {[%emt 0:01:54]} Qb6 {[%emt 0:00:02]} 15. Qe2 {[%emt 0:02:28]} O-O {[%emt 0:00:06]} 16. Be3 {[%emt 0:00:03]} Qd8 {[%emt 0:01:59]} 17. Nd4 {[%emt 0:00:03]} Rc8 {[%emt 0:00:44]} 18. Nf5 {[%emt 0:00:15]} Bxf5 {[%emt 0:00:14]} 19. Rxf5 {[%emt 0:00:02]} b5 {[%emt 0:00:01]} 20. a3 {[%emt 0:00:11]} g6 {[%emt 0:01:24]} 21. Rff1 {[%emt 0:03:20]} Nh5 {[%emt 0:01:02]} 22. Qd2 {[%emt 0:01:27]} Qd7 {[%emt 0:00:57]} 23. Bh6 {[%emt 0:01:15]} Rfe8 {[%emt 0:02:20]} 24. Nd5 {[%emt 0:00:01]} Rxc1 {[%emt 0:00:46]} 25. Qxc1 {[%emt 0:00:02]} Bd8 {[%emt 0:00:02]} 26. Bg5 {[%emt 0:01:42]} f6 {[%emt 0:01:24]} 27. Bh4 {[%emt 0:01:19]} g5 {[%emt 0:00:02]} 28. Be1 {[%emt 0:00:50]} Rf8 {[%emt 0:00:01]} 29. Ne3 {[%emt 0:01:46]} Ng7 {[%emt 0:00:12]} 30. Nf5 {[%emt 0:00:11]} Nxf5 {[%emt 0:00:01]} 31. Rxf5 {[%emt 0:00:02]} Be7 {[%emt 0:00:05]} 32. Bc3 {[%emt 0:00:04]} Qe6 {[%emt 0:00:43]} 33. Qd1 {[%emt 0:00:09]} h6 {[%emt 0:01:11]} 34. Qg4 {[%emt 0:00:08]} Qf7 {[%emt 0:00:05]} 35. h3 {[%emt 0:00:30]} Kh7 {[%emt 0:00:08]} 36. Rf3 {[%emt 0:00:09]} Qg6 {[%emt 0:01:16]} 37. h4 {[%emt 0:00:36]} gxh4 {[%emt 0:00:14]} 38. Qxh4 {[%emt 0:00:12]} Qg5 {[%emt 0:00:02]} 39. Qf2 {[%emt 0:00:32]} Rg8 {[%emt 0:00:11]} 40. Bd2 {[%emt 0:00:37]} Qg4 {[%emt 0:00:05]} 41. Rh3 {[%emt 0:00:10]} Rg6 {[%emt 0:00:02]} 42. Rh4 {[%emt 0:00:25]} Qd1+ {[%emt 0:00:01]} 43. Kh2 {[%emt 0:00:01]} d5 {[%emt 0:00:12]} 44. e5 {[%emt 0:00:17]} f5 {[%emt 0:00:19]} 45. Rh3 {[%emt 0:00:12]} Qg4 {[%emt 0:00:09]} 46. Bf4 {[%emt 0:00:13]} Bg5 {[%emt 0:00:16]} 47. Bxg5 {[%emt 0:00:17]} Qxg5 {[%emt 0:00:01]} 48. d4 {[%emt 0:00:05]} Qg4 {[%emt 0:00:09]} 49. Rf3 {[%emt 0:00:05]} Rg5 {[%emt 0:00:05]} 50. Rh3 1/2-1/2

[Event "RUS-ch Men Rapid 2019"]
[Site "Sochi"]
[Date "2019.10.16"]
[Round "11.20"]
[White "Derjabin, Ilja"]
[Black "Belozerov, Andrei"]
[Result "0-1"]
[ECO "D00"]
[WhiteElo "2333"]
[BlackElo "2515"]
[Annotator "ChessBase"]
[PlyCount "68"]
[EventDate "2019.10.15"]
[EventType "swiss"]
[EventCountry "RUS"]
[SourceTitle "playchess.com"]
[Source "ChessBase"]
[SourceQuality "1"]
[TimeControl "900+10"]

1. d4 {[%emt 0:00:00]} d5 {[%emt 0:00:00]} 2. Nc3 {[%emt 0:00:00]} Bf5 {[%emt 0:00:00]} 3. g3 {[%emt 0:00:20]} e6 {[%emt 0:00:00]} 4. Bg2 {[%emt 0:00:02]} Nf6 {[%emt 0:00:00]} 5. Bg5 {[%emt 0:00:22]} Be7 {[%emt 0:00:01]} 6. Nf3 {[%emt 0:01:25]} h6 {[%emt 0:00:02]} 7. Bf4 {[%emt 0:00:02]} O-O {[%emt 0:00:03]} 8. O-O {[%emt 0:00:05]} c5 {[%emt 0:00:05]} 9. dxc5 {[%emt 0:02:43]} Bxc5 {[%emt 0:00:02]} 10. Na4 {[%emt 0:00:26]} Be7 {[%emt 0:00:02]} 11. Nd4 {[%emt 0:00:05]} Be4 {[%emt 0:00:10]} 12. b3 {[%emt 0:02:46]} Nbd7 {[%emt 0:00:15]} 13. Be3 {[%emt 0:00:09]} Rc8 {[%emt 0:00:29]} 14. f3 {[%emt 0:02:41]} Bh7 {[%emt 0:00:03]} 15. Bh3 {[%emt 0:00:10]} a6 {[%emt 0:02:18]} 16. c4 {[%emt 0:02:10]} Nc5 {[%emt 0:03:28]} 17. Nxc5 {[%emt 0:01:25]} Bxc5 {[%emt 0:00:01]} 18. Bf2 {[%emt 0:00:06]} dxc4 {[%emt 0:01:13]} 19. bxc4 {[%emt 0:00:02]} Qb6 {[%emt 0:00:06]} 20. e3 {[%emt 0:00:20]} Qc7 {[%emt 0:03:44]} 21. Qb3 {[%emt 0:00:18]} Bxd4 {[%emt 0:00:15]} 22. exd4 {[%emt 0:00:01]} Qxc4 {[%emt 0:00:07]} 23. Qxb7 {[%emt 0:00:24]} Nd5 {[%emt 0:00:30]} 24. Qb3 {[%emt 0:00:08]} Qc6 {[%emt 0:01:07]} 25. Rfe1 {[%emt 0:00:33]} Bc2 {[%emt 0:00:45]} 26. Qa3 {[%emt 0:00:07]} Qc3 {[%emt 0:00:06]} 27. Qxc3 {[%emt 0:00:13]} Rxc3 {[%emt 0:00:01]} 28. f4 {[%emt 0:00:30]} Rfc8 {[%emt 0:00:40]} 29. Bg2 {[%emt 0:00:17]} Bf5 {[%emt 0:00:20]} 30. Bf1 {[%emt 0:00:19]} Ra3 {[%emt 0:00:13]} 31. h3 {[%emt 0:01:11]} Rc2 {[%emt 0:00:27]} 32. g4 {[%emt 0:00:01]} Bd3 {[%emt 0:00:07]} 33. Rab1 {[%emt 0:00:49]} Bxf1 {[%emt 0:00:15]} 34. Rxf1 {[%emt 0:00:03]} Nxf4 {[%emt 0:00:13]} 0-1

[Event "RUS-ch Men Rapid 2019"]
[Site "Sochi"]
[Date "2019.10.16"]
[Round "11.22"]
[White "Potapov, Pavel"]
[Black "Shubin, Kirill"]
[Result "1-0"]
[ECO "C18"]
[WhiteElo "2489"]
[BlackElo "2416"]
[Annotator "ChessBase"]
[PlyCount "107"]
[EventDate "2019.10.15"]
[EventType "swiss"]
[EventCountry "RUS"]
[SourceTitle "playchess.com"]
[Source "ChessBase"]
[SourceQuality "1"]
[TimeControl "900+10"]

1. e4 {[%emt 0:00:00]} e6 {[%emt 0:00:00]} 2. d4 {[%emt 0:00:02]} d5 {[%emt 0:00:01]} 3. Nc3 {[%emt 0:00:02]} Bb4 {[%emt 0:00:01]} 4. e5 {[%emt 0:00:04]} c5 {[%emt 0:00:01]} 5. a3 {[%emt 0:00:01]} Bxc3+ {[%emt 0:00:02]} 6. bxc3 {[%emt 0:00:02]} Qa5 {[%emt 0:00:01]} 7. Bd2 {[%emt 0:00:13]} Qa4 {[%emt 0:00:01]} 8. Qg4 {[%emt 0:00:03]} Kf8 {[%emt 0:00:02]} 9. Qd1 {[%emt 0:00:31]} b6 {[%emt 0:00:02]} 10. Nf3 {[%emt 0:00:16]} Ba6 {[%emt 0:00:19]} 11. h4 {[%emt 0:01:20]} Bxf1 {[%emt 0:00:07]} 12. Kxf1 {[%emt 0:00:03]} Nc6 {[%emt 0:00:52]} 13. h5 {[%emt 0:00:09]} h6 {[%emt 0:00:20]} 14. Rh4 {[%emt 0:00:32]} Nge7 {[%emt 0:00:19]} 15. Kg1 {[%emt 0:00:38]} cxd4 {[%emt 0:02:26]} 16. cxd4 {[%emt 0:00:04]} Rc8 {[%emt 0:00:24]} 17. Bb4 {[%emt 0:01:15]} Kg8 {[%emt 0:00:37]} 18. Rf4 {[%emt 0:00:05]} a5 {[%emt 0:01:24]} 19. Bd6 {[%emt 0:00:05]} Nf5 {[%emt 0:00:08]} 20. Rb1 {[%emt 0:01:55]} Nxd6 {[%emt 0:01:35]} 21. exd6 {[%emt 0:00:01]} Qxa3 {[%emt 0:00:01]} 22. d7 {[%emt 0:01:54]} Rb8 {[%emt 0:00:05]} 23. Ne5 {[%emt 0:02:25]} Nxe5 {[%emt 0:00:10]} 24. dxe5 {[%emt 0:00:02]} Qe7 {[%emt 0:00:02]} 25. c4 {[%emt 0:00:03]} Qxd7 {[%emt 0:00:02]} 26. Rd4 {[%emt 0:00:05]} Rd8 {[%emt 0:03:10]} 27. cxd5 {[%emt 0:00:06]} exd5 {[%emt 0:00:02]} 28. Rxb6 {[%emt 0:00:04]} Qf5 {[%emt 0:01:43]} 29. Rd6 {[%emt 0:00:54]} Rb8 {[%emt 0:00:06]} 30. g4 {[%emt 0:01:27]} Qb1 {[%emt 0:00:23]} 31. R6xd5 {[%emt 0:00:41]} Qxd1+ {[%emt 0:00:02]} 32. Rxd1 {[%emt 0:00:01]} Ra8 {[%emt 0:01:26]} 33. Ra1 {[%emt 0:00:21]} a4 {[%emt 0:00:10]} 34. Rd4 {[%emt 0:00:09]} Ra5 {[%emt 0:01:53]} 35. Re4 {[%emt 0:00:33]} a3 {[%emt 0:00:31]} 36. Re3 {[%emt 0:00:02]} Ra4 {[%emt 0:00:04]} 37. f3 {[%emt 0:00:04]} Kh7 {[%emt 0:00:18]} 38. Raxa3 {[%emt 0:00:57]} Rxa3 {[%emt 0:00:15]} 39. Rxa3 {[%emt 0:00:01]} Re8 {[%emt 0:00:17]} 40. Ra5 {[%emt 0:00:14]} f6 {[%emt 0:00:57]} 41. f4 {[%emt 0:00:17]} Kg8 {[%emt 0:00:20]} 42. Kf2 {[%emt 0:00:08]} Kf7 {[%emt 0:00:34]} 43. Kf3 {[%emt 0:00:01]} fxe5 {[%emt 0:00:08]} 44. fxe5 {[%emt 0:00:02]} Rb8 {[%emt 0:00:01]} 45. Kf4 {[%emt 0:00:15]} Rb1 {[%emt 0:00:34]} 46. Ra7+ {[%emt 0:00:04]} Ke6 {[%emt 0:00:01]} 47. Rxg7 {[%emt 0:00:55]} Rf1+ {[%emt 0:00:01]} 48. Ke4 {[%emt 0:00:06]} Re1+ {[%emt 0:00:05]} 49. Kf3 {[%emt 0:00:29]} Rf1+ {[%emt 0:00:05]} 50. Kg2 {[%emt 0:00:37]} Rf4 {[%emt 0:00:01]} 51. Kg3 {[%emt 0:00:07]} Kxe5 {[%emt 0:00:02]} 52. Re7+ {[%emt 0:00:02]} Kd6 {[%emt 0:00:01]} 53. Kxf4 {[%emt 0:00:03]} Kxe7 {[%emt 0:00:01]} 54. Ke4 1-0

[Event "RUS-ch Men Rapid 2019"]
[Site "Sochi"]
[Date "2019.10.16"]
[Round "11.23"]
[White "Smagin, Sergey"]
[Black "Gaydym, Arseniy"]
[Result "1-0"]
[ECO "B22"]
[WhiteElo "2551"]
[BlackElo "2139"]
[Annotator "ChessBase"]
[PlyCount "28"]
[EventDate "2019.10.15"]
[EventType "swiss"]
[EventCountry "RUS"]
[SourceTitle "playchess.com"]
[Source "ChessBase"]
[SourceQuality "1"]
[TimeControl "900+10"]

1. e4 {[%emt 0:00:00]} c5 {[%emt 0:00:00]} 2. c3 {[%emt 0:00:00]} d5 {[%emt 0:00:04]} 3. exd5 {[%emt 0:00:00]} Qxd5 {[%emt 0:00:02]} 4. d4 {[%emt 0:00:00]} e6 {[%emt 0:00:06]} 5. Nf3 {[%emt 0:00:00]} Nf6 {[%emt 0:00:04]} 6. Na3 {[%emt 0:00:23]} Qd8 {[%emt 0:00:27]} 7. Bf4 {[%emt 0:00:02]} cxd4 {[%emt 0:00:59]} 8. Nxd4 {[%emt 0:01:26]} Bxa3 {[%emt 0:00:14]} 9. Qa4+ {[%emt 0:00:03]} Nbd7 {[%emt 0:03:13]} 10. Qxa3 {[%emt 0:00:02]} Nd5 {[%emt 0:01:38]} 11. Bg3 {[%emt 0:00:43]} Ne7 {[%emt 0:00:51]} 12. Nb5 {[%emt 0:01:00]} Nb6 {[%emt 0:03:14]} 13. Nc7+ {[%emt 0:00:40]} Kf8 {[%emt 0:00:00]} 14. Nxa8 {[%emt 0:00:40]} Nxa8 {[%emt 0:00:02]} 1-0

[Event "RUS-ch Men Rapid 2019"]
[Site "Sochi"]
[Date "2019.10.16"]
[Round "11.26"]
[White "Gogolev, Artem"]
[Black "Popov, Valerij"]
[Result "1/2-1/2"]
[ECO "E03"]
[WhiteElo "2328"]
[BlackElo "2535"]
[Annotator "ChessBase"]
[PlyCount "57"]
[EventDate "2019.10.15"]
[EventType "swiss"]
[EventCountry "RUS"]
[SourceTitle "playchess.com"]
[Source "ChessBase"]
[SourceQuality "1"]
[TimeControl "900+10"]

1. d4 {[%emt 0:01:00]} Nf6 {[%emt 0:00:00]} 2. c4 {[%emt 0:00:02]} e6 {[%emt 0:00:00]} 3. g3 {[%emt 0:00:02]} d5 {[%emt 0:00:00]} 4. Bg2 {[%emt 0:00:02]} dxc4 {[%emt 0:00:00]} 5. Qa4+ {[%emt 0:00:10]} Nbd7 {[%emt 0:00:06]} 6. Qxc4 {[%emt 0:00:03]} c5 {[%emt 0:00:16]} 7. Nf3 {[%emt 0:00:13]} a6 {[%emt 0:00:04]} 8. Qc2 {[%emt 0:00:15]} Ra7 {[%emt 0:02:08]} 9. Bg5 {[%emt 0:01:12]} b5 {[%emt 0:02:44]} 10. O-O {[%emt 0:00:56]} Bb7 {[%emt 0:00:14]} 11. dxc5 {[%emt 0:00:29]} Bxc5 {[%emt 0:00:06]} 12. Bxf6 {[%emt 0:00:10]} gxf6 {[%emt 0:01:00]} 13. Rd1 {[%emt 0:00:59]} Qb6 {[%emt 0:00:11]} 14. e3 {[%emt 0:00:07]} Ba8 {[%emt 0:01:37]} 15. a4 {[%emt 0:01:31]} O-O {[%emt 0:00:04]} 16. axb5 {[%emt 0:01:07]} Qxb5 {[%emt 0:00:15]} 17. Nc3 {[%emt 0:00:19]} Qb8 {[%emt 0:00:21]} 18. Ra4 {[%emt 0:01:02]} Rc8 {[%emt 0:00:47]} 19. Rda1 {[%emt 0:01:40]} Bb4 {[%emt 0:03:43]} 20. Rxa6 {[%emt 0:00:40]} Rxa6 {[%emt 0:00:01]} 21. Rxa6 {[%emt 0:00:01]} Bb7 {[%emt 0:00:07]} 22. Ra1 {[%emt 0:00:28]} Nc5 {[%emt 0:00:25]} 23. Qe2 {[%emt 0:00:43]} Nb3 {[%emt 0:00:19]} 24. Rd1 {[%emt 0:00:41]} Bxc3 {[%emt 0:00:43]} 25. bxc3 {[%emt 0:00:20]} Rxc3 {[%emt 0:00:01]} 26. Nd4 {[%emt 0:00:20]} Bxg2 {[%emt 0:01:21]} 27. Kxg2 {[%emt 0:00:05]} Nxd4 {[%emt 0:01:03]} 28. Rxd4 {[%emt 0:00:09]} Qa8+ {[%emt 0:00:25]} 29. Qf3 {[%emt 0:00:09]} 1/2-1/2

[Event "RUS-ch Men Rapid 2019"]
[Site "Sochi"]
[Date "2019.10.16"]
[Round "11.27"]
[White "Yeritsyan, Aram"]
[Black "Yuffa, Daniil"]
[Result "0-1"]
[ECO "B54"]
[WhiteElo "2271"]
[BlackElo "2577"]
[Annotator "ChessBase"]
[PlyCount "72"]
[EventDate "2019.10.15"]
[EventType "swiss"]
[EventCountry "RUS"]
[SourceTitle "playchess.com"]
[Source "ChessBase"]
[SourceQuality "1"]
[TimeControl "900+10"]

1. e4 c5 2. Nf3 d6 3. d4 cxd4 4. Nxd4 Nf6 5. f3 e5 6. Nb3 Be7 7. c4 a5 8. Be3 O-O 9. Nc3 a4 10. Nc1 a3 11. b3 Nc6 12. Qd2 Qa5 13. Nd5 Nxd5 14. Qxa5 Rxa5 15. cxd5 Nd4 16. Kd2 f5 17. Bd3 fxe4 18. fxe4 Bg4 19. Rf1 Rxf1 20. Bxf1 Rc5 21. Bd3 Bd8 22. b4 Rc8 23. Nb3 Bb6 24. Na5 Rb8 25. Nc4 Bc7 26. Nxa3 Ra8 27. Nc2 Bb6 28. Nxd4 exd4 29. Bf4 Rf8 30. Bg3 Bd8 31. Be2 Bd7 32. a4 Bf6 33. Kd3 Rc8 34. Be1 Ra8 35. a5 Bb5+ 36. Kd2 Bxe2 0-1

[Event "RUS-ch Men Rapid 2019"]
[Site "Sochi"]
[Date "2019.10.16"]
[Round "11.31"]
[White "Volovich, Vasily"]
[Black "Apryshko, Gleb"]
[Result "1-0"]
[ECO "B06"]
[WhiteElo "2120"]
[BlackElo "2382"]
[Annotator "NA"]
[PlyCount "43"]
[EventDate "2019.10.15"]
[EventType "swiss"]
[EventCountry "RUS"]
[SourceTitle "playchess.com"]
[Source "ChessBase"]
[SourceQuality "1"]
[TimeControl "900+10"]

1. e4 {[%emt 0:00:00]} g6 {[%emt 0:00:00]} 2. d4 {[%emt 0:00:00]} Bg7 3. Nc3 a6 {[%emt 0:00:00]} 4. a4 {[%emt 0:00:13]} d6 {[%emt 0:00:00]} 5. h4 {[%emt 0:00:12]} Nf6 {[%emt 0:02:20]} 6. Be2 {[%emt 0:00:04]} c5 {[%emt 0:00:03]} 7. d5 {[%emt 0:00:02]} h5 {[%emt 0:00:38]} 8. Nf3 {[%emt 0:00:08]} Nbd7 {[%emt 0:00:59]} 9. O-O {[%emt 0:00:14]} b6 {[%emt 0:00:21]} 10. Bf4 {[%emt 0:00:32]} Ng4 {[%emt 0:00:24]} 11. Ng5 Nge5 {[%emt 0:00:36]} 12. Bg3 {[%emt 0:00:38]} Nf8 {[%emt 0:00:44]} 13. Qd2 {[%emt 0:01:15]} Bg4 {[%emt 0:01:01]} 14. f4 {[%emt 0:02:04]} Bxe2 {[%emt 0:00:08]} 15. Qxe2 {[%emt 0:00:19]} Ng4 {[%emt 0:00:02]} 16. e5 {[%emt 0:00:40]} f6 {[%emt 0:04:43]} 17. Nf3 {[%emt 0:03:34]} Nh6 {[%emt 0:01:45]} 18. exd6 {[%emt 0:00:21]} Qxd6 {[%emt 0:00:26]} 19. Ne4 {[%emt 0:00:14]} Qxd5 {[%emt 0:00:13]} 20. Rad1 {[%emt 0:00:57]} Qe6 {[%emt 0:00:00]} 21. Rfe1 {[%emt 0:00:37]} Kf7 {[%emt 0:01:42]} 22. Neg5+ {[%emt 0:00:07]} 1-0

[Event "RUS-ch Men Rapid 2019"]
[Site "Sochi"]
[Date "2019.10.16"]
[Round "11.32"]
[White "Savitskiy, Sergey"]
[Black "Gubsky, Egor"]
[Result "1-0"]
[ECO "B30"]
[WhiteElo "2407"]
[BlackElo "2339"]
[Annotator "NA"]
[PlyCount "91"]
[EventDate "2019.10.15"]
[EventType "swiss"]
[EventCountry "RUS"]
[SourceTitle "playchess.com"]
[Source "ChessBase"]
[SourceQuality "1"]
[TimeControl "900+10"]

1. e4 c5 2. Nf3 Nc6 3. Bb5 e6 4. O-O Nge7 5. Re1 a6 6. Bf1 d5 7. exd5 Nxd5 8. d4 Nf6 9. dxc5 Qxd1 10. Rxd1 Bxc5 11. Nc3 Bd7 12. Bf4 O-O-O 13. Ng5 e5 14. Bg3 Rhf8 15. Bc4 Be8 16. Rxd8+ Kxd8 17. Rd1+ Kc8 18. Nce4 Nxe4 19. Nxe4 Be7 20. Nd6+ Bxd6 21. Rxd6 Kc7 22. Rd1 f6 23. f4 Bf7 24. Bd3 Rd8 25. Re1 Bxa2 26. fxe5 Nxe5 27. Bxh7 Be6 28. Bxe5+ fxe5 29. Rxe5 Rd1+ 30. Kf2 Rd2+ 31. Ke3 Rd6 32. Rg5 Rd7 33. Bd3 Kd6 34. h4 Rf7 35. Rg6 Ke5 36. Rxe6+ Kxe6 37. Bc4+ Ke7 38. Bxf7 Kxf7 39. g4 Kg6 40. Ke4 Kf6 41. Kd5 a5 42. c4 a4 43. c5 Ke7 44. Ke5 Kd7 45. h5 Kc6 46. g5 1-0